bitfinex/quotes_SOLUSD_20220119
["timestamp","ask_amount","ask_price","bid_price","bid_amount"]
[1642622905326,2.928,136.57,136.49,23.5858]
[1642622905524,41.72740863,136.56,136.49,23.5858]
[1642622906424,41.72740863,136.56,136.5,0.25]
[1642622909930,114.89740863,136.56,136.5,0.25]
[1642622910831,114.89740863,136.56,136.49,23.5858]
[1642622911031,2.928,136.55,136.49,23.5858]
[1642622911233,114.89740863,136.56,136.49,23.5858]
[1642622911537,73.17,136.54,136.44,2.0718147]
[1642622911761,78.736,136.54,136.42,24.4516]
[1642622912066,45.51003887,136.53,136.42,32.5234147]
[1642622912659,45.51003887,136.53,136.42,30.4516]
[1642622912861,68.46743887,136.53,136.42,30.4516]
[1642622913063,1.82712602,136.52,136.42,30.4516]
[1642622913261,2.931,136.51,136.42,30.4516]
[1642622913464,2.931,136.51,136.42,6.0]
[1642622913663,4.75812602,136.51,136.41,2.928]
[1642622913863,39.33650178,136.5,136.41,2.928]
[1642622914063,2.931,136.49,136.41,2.928]
[1642622914463,2.931,136.49,136.42,0.25]
[1642622914666,39.33650178,136.5,136.42,6.25]
[1642622914862,2.931,136.53,136.43,1.37577363]
[1642622915064,15.39981535,136.57,136.43,43.84147363]
[1642622915262,12.46981535,136.57,136.44,0.25]
[1642622915462,2.93,136.56,136.44,0.25]
[1642622915663,2.93,136.56,136.43,31.9557]
[1642622915664,15.39981535,136.56,136.43,31.9557]
[1642622915865,15.39981535,136.56,136.43,23.0257]
[1642622916065,1.95981535,136.54,136.43,23.0257]
[1642622916263,13.44,136.53,136.43,23.0257]
[1642622916667,38.73568022,136.52,136.39,2.93]
[1642622916867,38.73568022,136.52,136.4,29.218]
[1642622916868,27.2176,136.51,136.4,29.218]
[1642622917066,33.6676,136.51,136.41,6.0]
[1642622918266,33.6676,136.51,136.42,0.25]
[1642622920766,73.17,136.5,136.41,6.0]
[1642622920968,73.17,136.5,136.4,22.968]
[1642622921172,2.931,136.49,136.4,22.968]
[1642622921770,2.931,136.49,136.38,35.06527971]
[1642622921970,27.5496,136.49,136.38,35.06527971]
[1642622922169,27.5496,136.49,136.38,10.53897971]
[1642622923173,73.17,136.48,136.38,10.53897971]
[1642622923371,42.98257881,136.47,136.38,10.53897971]
[1642622924271,73.17,136.46,136.39,0.25]
[1642622925271,73.17,136.46,136.38,10.53897971]
[1642622925671,40.05157881,136.47,136.39,0.25]
[1642622926471,40.05157881,136.47,136.39,32.14317224]
[1642622927073,40.05157881,136.47,136.4,2.931]
[1642622927273,40.05157881,136.47,136.41,0.25]
[1642622927674,73.17,136.51,136.41,0.25]
[1642622927871,73.17,136.51,136.42,2.931]
[1642622928271,73.17,136.51,136.43,0.25]
[1642622928673,37.61549281,136.52,136.43,0.25]
[1642622928878,37.61549281,136.52,136.43,6.25]
[1642622929077,37.61549281,136.52,136.45,35.30600842]
[1642622929281,37.61549281,136.52,136.46,0.25]
[1642622929475,37.61549281,136.52,136.46,6.25]
[1642622930504,37.61549281,136.52,136.46,0.25]
[1642622932584,37.61549281,136.52,136.44,10.51]
[1642622932780,37.61549281,136.52,136.45,0.25]
[1642622933578,37.61549281,136.52,136.45,6.25]
[1642622933978,2.93,136.55,136.45,6.25]
[1642622934180,2.93,136.55,136.45,30.3853]
[1642622934383,1.95981535,136.57,136.46,2.93]
[1642622934582,45.9774,136.59,136.47,30.2525]
[1642622934784,45.9774,136.59,136.48,2.928]
[1642622934982,49.41624016,136.58,136.48,2.928]
[1642622935185,49.41624016,136.58,136.49,0.25]
[1642622935385,2.928,136.57,136.49,0.25]
[1642622935783,49.41624016,136.58,136.49,3.178]
[1642622938415,73.17,136.57,136.49,3.178]
[1642622938714,51.24336618,136.58,136.49,3.178]
[1642622938915,52.34424016,136.58,136.49,3.178]
[1642622939817,52.34424016,136.58,136.49,0.25]
[1642622940215,52.34424016,136.58,136.48,0.25]
[1642622940417,52.34424016,136.58,136.48,3.178]
[1642622940815,54.30405551,136.58,136.48,2.928]
[1642622941015,56.13118153,136.58,136.47,24.2525]
[1642622941217,1.95981535,136.57,136.47,24.2525]
[1642622941419,2.928,136.56,136.47,24.2525]
[1642622942018,4.88781535,136.56,136.47,24.2525]
[1642622942619,4.88781535,136.56,136.44,23.0948]
[1642622942918,10.51,136.55,136.44,23.0948]
[1642622943121,2.93,136.54,136.44,23.0948]
[1642622943718,48.5098617,136.53,136.44,23.0948]
[1642622943922,48.5098617,136.53,136.45,0.25]
[1642622945520,2.93,136.55,136.45,6.25]
[1642622945723,1.95981535,136.56,136.46,2.93]
[1642622945921,1.95981535,136.56,136.47,23.1834]
[1642622946124,22.5491,136.57,136.47,29.0734]
[1642622946321,4.88981535,136.58,136.48,8.928]
[1642622946622,35.25089887,136.57,136.49,44.944099]
[1642622946821,35.25089887,136.57,136.5,2.928]
[1642622947022,35.25089887,136.57,136.49,45.194099]
[1642622947023,35.25089887,136.57,136.49,27.5508]
[1642622948225,35.25089887,136.57,136.49,24.6228]
[1642622948425,35.25089887,136.57,136.49,24.3728]
[1642622948924,35.25089887,136.57,136.5,0.25]
[1642622949524,3.845505,136.56,136.5,0.25]
[1642622950523,15.132052,136.56,136.5,0.25]
[1642622953332,10.97312602,136.54,136.46,0.25]
[1642622953731,41.11976241,136.52,136.46,0.25]
[1642622954128,41.11976241,136.52,136.45,24.2402]
[1642622955428,114.28976241,136.52,136.45,24.2402]
[1642622955629,28.024683,136.51,136.44,23.0948]
[1642622955833,73.17,136.5,136.44,23.0948]
[1642622956129,11.292346,136.49,136.44,23.0948]
[1642622956332,84.462346,136.49,136.44,23.0948]
[1642622956530,7.875,136.5,136.4,26.0339]
[1642622956731,7.875,136.5,136.4,23.1039]
[1642622957530,81.045,136.5,136.4,23.1039]
[1642622957732,81.045,136.5,136.41,0.25]
[1642622959136,7.875,136.5,136.41,0.25]
[1642622959335,26.6438,136.51,136.41,0.25]
[1642622959534,23.7138,136.51,136.41,0.25]
[1642622959733,65.57286241,136.52,136.42,17.10842083]
[1642622959933,65.57286241,136.52,136.43,24.2032]
[1642622960134,65.57286241,136.52,136.43,24.4532]
[1642622960335,65.57286241,136.52,136.44,0.25]
[1642622960535,41.11976241,136.52,136.44,0.25]
[1642622961234,11.287405,136.51,136.44,0.25]
[1642622964639,41.11976241,136.52,136.44,0.25]
[1642622965140,41.11976241,136.52,136.44,6.25]
[1642622965642,4.88981535,136.55,136.44,6.25]
[1642622965840,1.95981535,136.55,136.45,26.9507]
[1642622966144,28.24621535,136.56,136.45,26.9507]
[1642622966341,25.31621535,136.56,136.46,79.42]
[1642622966541,62.28040734,136.56,136.48,22.80958968]
[1642622966740,62.28040734,136.56,136.49,0.25]
[1642622966741,38.92400734,136.56,136.49,0.25]
[1642622969343,1.95981535,136.58,136.49,0.25]
[1642622969544,1.95981535,136.58,136.49,30.47667693]
[1642622969744,25.74393972,136.61,136.49,41.24667693]
[1642622969745,1.95981535,136.59,136.49,41.24667693]
[1642622969947,1.95981535,136.6,136.49,41.24667693]
[1642622970345,47.39367636,136.6,136.49,41.24667693]
[1642622970945,49.35349171,136.6,136.49,41.24667693]
[1642622971149,47.39367636,136.6,136.5,2.928]
[1642622971352,47.39367636,136.6,136.5,13.438]
[1642622971545,47.39367636,136.6,136.51,24.9204]
[1642622971978,49.35349171,136.6,136.51,24.9204]
[1642622972776,1.95981535,136.59,136.51,24.9204]
[1642622972979,4.88781535,136.59,136.51,24.6704]
[1642622973178,78.05781535,136.59,136.51,24.6704]
[1642622973577,1.95981535,136.58,136.51,24.6704]
[1642622974378,2.928,136.57,136.51,24.6704]
[1642622974580,2.928,136.57,136.46,10.51]
[1642622974779,2.928,136.57,136.47,29.5766]
[1642622975177,4.88781535,136.57,136.47,29.5766]
[1642622978084,1.95981535,136.57,136.47,32.5046]
[1642622978285,1.95981535,136.57,136.47,26.5046]
[1642622978986,1.95981535,136.56,136.47,26.5046]
[1642622979188,46.3085093,136.55,136.47,26.5046]
[1642622980585,46.3085093,136.55,136.47,23.5766]
[1642622983591,1.95981535,136.57,136.47,23.5766]
[1642622984595,38.54767907,136.57,136.47,24.94897693]
[1642622984795,23.8549,136.58,136.48,73.17]
[1642622984997,23.8549,136.58,136.49,10.51]
[1642622985196,23.8549,136.58,136.49,12.39237693]
[1642622985496,23.8549,136.58,136.5,1.37237693]
[1642622985696,23.8549,136.58,136.51,15.18348891]
[1642622986098,23.8549,136.58,136.52,6.0]
[1642622986300,23.8549,136.58,136.53,0.25]
[1642622987498,23.8549,136.58,136.54,2.928]
[1642622987697,23.8549,136.58,136.55,0.25]
[1642622987898,23.8549,136.58,136.56,5.96019997]
[1642622988100,23.8549,136.58,136.56,8.99239994]
[1642622988299,23.8549,136.58,136.57,0.25]
[1642622988999,23.8549,136.58,136.56,6.06439994]
[1642622989199,23.8549,136.58,136.53,2.928]
[1642622989398,23.8549,136.58,136.54,0.25]
[1642622990099,41.37318587,136.57,136.54,0.25]
[1642622990536,41.37318587,136.57,136.52,0.25]
[1642622990901,23.8549,136.58,136.52,0.25]
[1642622991102,23.8549,136.58,136.52,3.178]
[1642622991800,71.92407912,136.58,136.52,3.178]
[1642622992001,48.06917912,136.58,136.52,0.25]
[1642622992601,48.06917912,136.58,136.52,6.25]
[1642622994802,1.95981535,136.6,136.52,6.25]
[1642622995202,273.58072344,136.72,136.53,2.928]
[1642622995203,1.95981535,136.61,136.53,2.928]
[1642622995403,1.95981535,136.62,136.53,2.928]
[1642622995606,1.95981535,136.62,136.54,6.25]
[1642622995805,42.6694306,136.61,136.54,6.25]
[1642622996004,44.62924595,136.61,136.54,6.25]
[1642622998844,42.6694306,136.61,136.54,6.25]
[1642623002946,44.62924595,136.61,136.54,6.25]
[1642623003143,44.62924595,136.61,136.47,4.9998147]
[1642623003343,73.17,136.59,136.48,10.51]
[1642623003545,4.88781535,136.58,136.48,10.76]
[1642623003744,30.26631535,136.58,136.49,2.928]
[1642623004244,30.26631535,136.58,136.5,0.25]
[1642623005145,35.02144137,136.58,136.5,0.25]
[1642623005346,35.02144137,136.58,136.49,0.25]
[1642623005547,1.95981535,136.57,136.48,0.25]
[1642623005746,39.42074628,136.56,136.48,0.25]
[1642623009352,1.95981535,136.57,136.48,6.25]
[1642623009550,25.09131535,136.58,136.48,6.25]
[1642623010351,38.05927558,136.57,136.48,6.25]
[1642623010554,38.05927558,136.57,136.48,0.25]
[1642623011751,40.01909093,136.57,136.48,0.25]
[1642623012051,40.01909093,136.57,136.48,24.2163]
[1642623014957,40.01909093,136.57,136.47,2.928]
[1642623015158,78.05781535,136.56,136.47,2.928]
[1642623015356,1.95981535,136.55,136.47,2.928]
[1642623015561,2.93,136.54,136.47,2.928]
[1642623015756,10.823,136.54,136.47,2.928]
[1642623015957,14.60994137,136.54,136.47,2.928]
[1642623016259,11.67994137,136.54,136.47,2.928]
[1642623016455,9.85281535,136.54,136.43,2.93]
[1642623016658,22.6213,136.53,136.45,22.00525189]
[1642623017055,22.6213,136.53,136.46,0.25]
[1642623017256,1.95981535,136.55,136.46,3.18]
[1642623017657,24.3887,136.56,136.46,3.18]
[1642623019056,40.01909093,136.57,136.47,16.51]
[1642623019057,1.95981535,136.57,136.47,16.51]
[1642623019261,2.93,136.59,136.48,3.178]
[1642623019262,25.35151535,136.59,136.48,3.178]
[1642623019656,25.35151535,136.59,136.49,6.0]
[1642623019857,25.35151535,136.59,136.5,2.928]
[1642623020057,72.44112995,136.59,136.51,39.19392877]
[1642623020263,72.44112995,136.59,136.52,0.25]
[1642623022258,70.4813146,136.59,136.52,0.25]
[1642623022760,72.44112995,136.59,136.52,0.25]
[1642623022960,25.35151535,136.59,136.52,0.25]
[1642623023160,1.95981535,136.6,136.52,0.25]
[1642623023362,1.95981535,136.6,136.52,8.267]
[1642623023565,1.95981535,136.6,136.52,37.7256]
[1642623023762,1.95981535,136.6,136.52,37.9856]
[1642623024365,1.95981535,136.61,136.52,37.9856]
[1642623027268,1.95981535,136.62,136.52,37.9856]
[1642623027465,1.95981535,136.62,136.53,10.51]
[1642623027664,1.95981535,136.63,136.54,2.928]
[1642623027866,1.95981535,136.64,136.54,43.3636]
[1642623028070,1.95981535,136.66,136.54,44.99597693]
[1642623028270,1.95981535,136.66,136.56,22.00525189]
[1642623028471,1.95981535,136.66,136.57,13.438]
[1642623028668,45.84237382,136.68,136.57,13.438]
[1642623028669,1.95981535,136.68,136.57,44.82577693]
[1642623028870,1.95981535,136.68,136.58,1.37237693]
[1642623029067,1.95981535,136.69,136.59,8.927]
[1642623029269,1.95981535,136.69,136.6,22.6932]
[1642623029670,1.95981535,136.69,136.61,41.36383406]
[1642623031902,26.63041535,136.7,136.61,41.36383406]
[1642623032105,1.95981535,136.72,136.61,52.13383406]
[1642623032504,1.95981535,136.72,136.62,73.17]
[1642623032703,40.95944558,136.72,136.63,3.176]
[1642623032905,40.95944558,136.72,136.63,9.176]
[1642623033203,40.95944558,136.72,136.63,9.436]
[1642623034607,40.95944558,136.72,136.63,19.946]
[1642623036005,40.95944558,136.72,136.63,19.686]
[1642623037811,42.7865716,136.72,136.63,19.436]
[1642623038411,42.7865716,136.72,136.63,16.51]
[1642623039012,42.7865716,136.72,136.64,0.25]
[1642623039212,45.7125716,136.72,136.63,6.0]
[1642623040216,11.293778,136.71,136.63,6.0]
[1642623040615,13.12090402,136.71,136.64,0.25]
[1642623040815,1.82712602,136.71,136.64,0.25]
[1642623041414,4.140431,136.7,136.64,0.25]
[1642623041814,4.140431,136.7,136.63,0.25]
[1642623042015,2.926,136.7,136.63,0.25]
[1642623047622,29.48812602,136.71,136.63,0.25]
[1642623048223,31.44794137,136.71,136.63,0.25]
[1642623048624,29.48812602,136.71,136.63,0.25]
[1642623048823,27.661,136.71,136.63,0.25]
[1642623049929,26.69481535,136.71,136.63,0.25]
[1642623052829,1.95981535,136.7,136.63,0.25]
[1642623057139,1.95981535,136.69,136.63,0.25]
[1642623057341,1.95981535,136.7,136.63,0.25]
[1642623058176,1.95981535,136.69,136.63,0.25]
[1642623058775,45.42122592,136.67,136.63,0.25]
[1642623059174,47.38104127,136.67,136.63,0.25]
[1642623060679,47.38104127,136.67,136.6,2.926]
[1642623060877,1.95981535,136.66,136.59,24.6069]
[1642623061081,1.95981535,136.66,136.6,0.25]
[1642623061678,1.95981535,136.65,136.57,26.701]
[1642623061881,1.95981535,136.65,136.57,23.774]
[1642623062085,1.95981535,136.65,136.58,0.25]
[1642623062881,1.95981535,136.65,136.57,23.774]
[1642623064281,1.95981535,136.65,136.58,0.25]
[1642623064882,1.95981535,136.64,136.57,23.774]
[1642623065082,4.88781535,136.64,136.54,33.8487]
[1642623065280,75.12981535,136.64,136.54,23.3387]
[1642623065480,1.95981535,136.63,136.54,23.3387]
[1642623066082,38.05209884,136.62,136.54,23.3387]
[1642623067285,38.05209884,136.62,136.55,0.25]
[1642623069082,11.30017,136.61,136.54,26.2667]
[1642623069283,11.30017,136.61,136.52,10.51]
[1642623069284,84.47017,136.61,136.52,10.51]
[1642623069482,73.17,136.61,136.52,13.438]
[1642623070283,73.17,136.61,136.53,0.25]
[1642623070583,76.098,136.61,136.53,0.25]
[1642623071684,2.928,136.61,136.53,0.25]
[1642623071890,2.928,136.61,136.53,21.33024336]
[1642623072487,62.44909884,136.62,136.53,21.33024336]
[1642623072887,62.44909884,136.62,136.53,0.25]
[1642623072888,135.61909884,136.62,136.53,0.25]
[1642623073291,135.61909884,136.62,136.52,24.8891]
[1642623075191,137.44622486,136.62,136.52,24.8891]
[1642623075792,135.61909884,136.62,136.52,24.8891]
[1642623077997,0.3504959,136.61,136.52,24.8891]
[1642623079699,7.8984959,136.61,136.52,0.25]
[1642623079896,9.72562192,136.61,136.52,0.25]
[1642623080097,9.72562192,136.61,136.51,2.928]
[1642623080297,2.928,136.6,136.5,10.51]
[1642623080499,26.9423,136.6,136.5,10.51]
[1642623081502,26.9423,136.6,136.51,0.25]
[1642623082700,73.17,136.59,136.51,0.25]
[1642623083101,73.5193292,136.59,136.51,0.25]
[1642623087506,0.3493292,136.59,136.51,0.25]
[1642623087904,0.3493292,136.59,136.51,25.2317]
[1642623088508,0.3493292,136.59,136.51,35.7417]
[1642623090810,0.3493292,136.59,136.52,2.928]
[1642623091013,0.3493292,136.59,136.53,35.2943]
[1642623091210,0.3493292,136.59,136.54,2.928]
[1642623091611,0.3493292,136.59,136.55,0.25]
[1642623093037,38.40434543,136.62,136.54,0.25]
[1642623094142,40.36416078,136.62,136.54,0.25]
[1642623094341,43.29216078,136.62,136.54,0.25]
[1642623094541,25.345315,136.61,136.54,0.25]
[1642623094741,17.315377,136.61,136.54,0.25]
[1642623094949,11.292925,136.6,136.54,0.25]
[1642623095342,11.292925,136.6,136.51,10.51]
[1642623095543,25.49811535,136.61,136.51,10.51]
[1642623095742,4.88781535,136.6,136.52,0.25]
[1642623096844,4.88781535,136.6,136.51,0.25]
[1642623098044,0.3493292,136.59,136.51,0.25]
[1642623099249,2.30914455,136.59,136.51,0.25]
[1642623099549,0.3493292,136.59,136.51,0.25]
[1642623100250,2.30914455,136.59,136.51,0.25]
[1642623100450,0.3493292,136.59,136.51,0.25]
[1642623102051,0.3493292,136.59,136.51,15.05022381]
[1642623103083,0.3493292,136.59,136.51,0.25]
[1642623104251,0.3493292,136.59,136.51,3.178]
[1642623104750,0.3493292,136.59,136.52,23.2754]
[1642623105152,0.3493292,136.59,136.53,0.25]
[1642623107358,0.3493292,136.59,136.54,24.99698965]
[1642623107560,0.3493292,136.59,136.54,31.76998965]
[1642623107757,0.3493292,136.59,136.55,3.178]
[1642623107958,0.35224659,136.62,136.55,27.3458]
[1642623108559,0.35224659,136.62,136.55,24.4178]
[1642623108758,2.31206194,136.62,136.55,24.4178]
[1642623109165,46.93135369,136.61,136.55,24.4178]
[1642623112897,0.34991259,136.6,136.55,24.4178]
[1642623114903,0.34991259,136.6,136.56,2.928]
[1642623115199,0.34991259,136.6,136.57,0.25]
[1642623115404,0.34991259,136.6,136.58,3.03219997]
[1642623116101,0.34991259,136.6,136.59,0.25]
[1642623117901,2.30972794,136.64,136.59,0.25]
[1642623118199,0.34991259,136.64,136.59,3.28219997]
[1642623118402,0.34991259,136.64,136.59,3.03219997]
[1642623118600,0.34991259,136.64,136.6,0.25]
[1642623119702,0.34991259,136.64,136.58,0.25]
[1642623123104,0.34991259,136.64,136.58,6.25]
[1642623125205,0.34991259,136.64,136.58,16.76]
[1642623125613,0.34991259,136.64,136.59,2.928]
[1642623125808,1.95981535,136.7,136.6,10.76]
[1642623126010,1.95981535,136.7,136.6,16.76]
[1642623126210,1.95981535,136.7,136.6,17.02]
[1642623126610,49.9671029,136.71,136.62,39.02131861]
[1642623126810,49.9671029,136.71,136.63,24.4575]
[1642623127407,49.9671029,136.71,136.64,6.0]
[1642623127809,49.9671029,136.71,136.65,0.25]
[1642623128010,1.95981535,136.7,136.65,0.25]
[1642623129513,1.95981535,136.7,136.64,0.25]
[1642623130214,1.95981535,136.7,136.64,6.25]
[1642623130416,1.95981535,136.72,136.64,6.25]
[1642623130618,1.95981535,136.72,136.64,11.321]
[1642623130816,1.95981535,136.72,136.64,11.581]
[1642623131014,1.95981535,136.72,136.65,10.51]
[1642623131215,1.95981535,136.72,136.66,16.90133922]
[1642623131415,39.54143122,136.74,136.66,16.90133922]
[1642623131714,39.54143122,136.74,136.67,10.51]
[1642623131921,39.54143122,136.74,136.68,2.926]
[1642623132221,3.13640554,136.76,136.68,3.176]
[1642623132421,3.13640554,136.76,136.68,26.5361]
[1642623132621,3.13640554,136.76,136.69,10.51]
[1642623132822,2.926,136.78,136.7,3.174]
[1642623132823,1.95981535,136.78,136.7,3.174]
[1642623133022,1.95981535,136.8,136.71,6.0]
[1642623133219,40.36563068,136.79,136.72,27.2447]
[1642623134024,25.77851535,136.81,136.72,27.2447]
[1642623134221,1.82712602,136.82,136.72,37.7547]
[1642623134222,1.95981535,136.82,136.72,37.7547]
[1642623134427,1.95981535,136.82,136.73,6.0]
[1642623134622,26.11311535,136.83,136.74,13.434]
[1642623134826,26.11311535,136.83,136.74,36.6542]
[1642623135222,38.95494669,136.82,136.74,36.6542]
[1642623136025,2.924,136.81,136.74,13.684]
[1642623136222,2.924,136.81,136.74,3.174]
[1642623137550,40.78207271,136.82,136.74,0.25]
[1642623138454,38.95494669,136.82,136.74,0.25]
[1642623141055,38.95494669,136.82,136.75,2.924]
[1642623141259,24.1533,136.83,136.76,0.25]
[1642623141458,26.6618,136.86,136.76,0.25]
[1642623141657,1.17301883,136.87,136.76,46.9288]
[1642623142054,1.17301883,136.87,136.76,47.1888]
[1642623142255,44.94103334,136.86,136.77,23.951028]
[1642623142657,44.94103334,136.86,136.78,0.25]
[1642623143459,1.17301883,136.87,136.78,0.25]
[1642623143658,95.9182,136.89,136.79,2.923]
[1642623144058,1.82712602,136.88,136.8,0.25]
[1642623144464,47.8685248,136.87,136.8,0.25]
[1642623145164,49.69565082,136.87,136.8,0.25]
[1642623145565,49.69565082,136.87,136.79,0.25]
[1642623145964,49.69565082,136.87,136.76,40.232]
[1642623146165,49.69565082,136.87,136.78,0.25]
[1642623147568,24.143538,136.86,136.77,23.1047]
[1642623147768,2.923,136.86,136.77,23.1047]
[1642623148069,4.75012602,136.86,136.76,29.722]
[1642623148268,77.92012602,136.86,136.76,29.722]
[1642623149470,74.99712602,136.86,136.77,2.923]
[1642623149869,74.99712602,136.86,136.78,0.25]
[1642623150272,18.662076,136.85,136.78,0.25]
[1642623150471,91.832076,136.85,136.78,0.25]
[1642623150676,73.17,136.85,136.76,32.645]
[1642623150877,73.17,136.83,136.72,13.433]
[1642623151077,2.924,136.82,136.72,23.9886]
[1642623151278,12.72912602,136.82,136.72,23.9886]
[1642623151478,1.82712602,136.81,136.72,23.9886]
[1642623151676,42.14470799,136.79,136.72,23.9886]
[1642623152075,42.14470799,136.79,136.73,0.25]
[1642623153579,27.0951,136.82,136.73,0.25]
[1642623154180,24.1711,136.82,136.73,0.25]
[1642623154582,39.24071696,136.81,136.73,0.25]
[1642623156282,1.95981535,136.83,136.73,0.25]
[1642623156485,1.95981535,136.86,136.73,97.94640642]
[1642623156685,1.95981535,136.87,136.73,97.94640642]
[1642623156893,1.95981535,136.87,136.75,73.17]
[1642623157082,1.95981535,136.88,136.76,41.0263]
[1642623157281,38.33731068,136.88,136.76,63.63268987]
[1642623157683,38.33731068,136.88,136.77,1.37240642]
[1642623157884,38.33731068,136.88,136.78,10.51]
[1642623157885,36.37749533,136.88,136.78,10.51]
[1642623158082,38.33731068,136.88,136.79,6.0]
[1642623158286,36.37749533,136.88,136.79,6.0]
[1642623158483,39.30049533,136.88,136.79,6.0]
[1642623158683,41.26031068,136.88,136.79,6.0]
[1642623158884,1.95981535,136.87,136.78,10.51]
[1642623159091,1.45981535,136.87,136.78,10.51]
[1642623159787,1.45981535,136.87,136.79,0.25]
[1642623161887,43.69121716,136.88,136.79,0.25]
[1642623162687,7.05223972,136.89,136.79,0.25]
[1642623162887,2.923,136.89,136.79,0.25]
[1642623163118,2.923,136.89,136.79,6.25]
[1642623163288,2.923,136.89,136.79,16.76]
[1642623163488,2.923,136.89,136.79,40.5593]
[1642623163689,2.923,136.89,136.79,115.36628203]
[1642623163889,22.8429,136.92,136.81,45.49919721]
[1642623164090,22.8429,136.92,136.82,19.432]
[1642623164288,22.8429,136.92,136.82,19.942]
[1642623164491,43.88038399,136.94,136.82,19.942]
[1642623164690,4.12923972,136.94,136.82,44.8903]
[1642623164888,4.12923972,136.94,136.82,46.26728203]
[1642623165090,27.4027,136.95,136.82,119.43728203]
[1642623165290,24.4807,136.95,136.82,119.43728203]
[1642623165990,24.4807,136.95,136.82,46.01728203]
[1642623166189,24.4807,136.95,136.82,44.6403]
[1642623166390,27.4027,136.95,136.82,44.6403]
[1642623167392,24.4807,136.95,136.83,0.25]
[1642623167791,24.4807,136.95,136.84,10.51]
[1642623168092,24.4807,136.95,136.85,6.0]
[1642623168291,2.92,136.94,136.85,6.25]
[1642623169492,2.92,136.94,136.85,0.25]
[1642623170621,27.4007,136.95,136.82,26.8808]
[1642623170793,2.922,136.93,136.85,0.25]
[1642623171000,9.408,136.94,136.83,6.0]
[1642623171195,9.408,136.94,136.83,0.25]
[1642623171396,25.87436574,136.94,136.81,56.00919721]
[1642623171593,25.87436574,136.94,136.82,0.25]
[1642623171797,25.87436574,136.94,136.81,56.00919721]
[1642623173100,25.87436574,136.94,136.82,0.25]
[1642623173298,17.55923972,136.94,136.82,0.25]
[1642623173697,17.55923972,136.94,136.82,10.76]
[1642623173896,13.43,136.94,136.82,10.76]
[1642623174898,13.43,136.94,136.82,0.25]
[1642623175099,19.38636574,136.94,136.82,0.25]
[1642623175802,17.55923972,136.94,136.82,46.36887215]
[1642623176402,2.92,136.94,136.83,10.51]
[1642623176606,24.4807,136.95,136.83,19.432]
[1642623176806,24.4807,136.95,136.84,0.25]
[1642623177802,73.17,136.94,136.84,0.25]
[1642623178003,76.092,136.94,136.84,0.25]
[1642623178604,12.057411,136.93,136.84,0.25]
[1642623178902,73.17,136.94,136.84,0.25]
[1642623179503,27.4027,136.95,136.84,0.25]
[1642623179703,85.353009,136.94,136.84,0.25]
[1642623180103,73.17,136.94,136.84,0.25]
[1642623180905,42.04193972,136.95,136.84,0.25]
[1642623181105,4.146786,136.94,136.84,48.7312885]
[1642623181309,4.146786,136.94,136.85,0.25]
[1642623182109,15.457029,136.94,136.85,0.25]
[1642623182309,15.457029,136.94,136.84,0.25]
[1642623182911,11.100794,136.93,136.84,0.25]
[1642623183111,42.04193972,136.95,136.84,0.25]
[1642623183312,4.146786,136.94,136.84,0.25]
[1642623183709,42.04193972,136.95,136.84,0.25]
[1642623183910,31.53193972,136.95,136.84,0.25]
[1642623184311,7.05123972,136.95,136.84,0.25]
[1642623184513,7.05123972,136.95,136.85,10.51]
[1642623184714,4.12923972,136.96,136.86,3.17]